bitfinex/quotes_ETHUSD_20250706
["timestamp","ask_amount","ask_price","bid_price","bid_amount"]
[1751810821372,0.36586999,2561.1,2561.0,0.002]
[1751810821538,10.72186999,2561.1,2561.0,0.002]
[1751810822386,10.72186999,2561.1,2561.0,3.90672471]
[1751810822796,10.72186999,2561.1,2561.0,0.002]
[1751810823101,10.72086999,2561.1,2561.0,0.002]
[1751810823697,10.72086999,2561.1,2561.0,3.90672471]
[1751810824198,10.72086999,2561.1,2561.0,0.002]
[1751810825972,10.71986999,2561.1,2561.0,0.002]
[1751810826149,10.71786999,2561.1,2561.0,0.002]
[1751810826980,10.70586999,2561.1,2561.0,0.002]
[1751810828080,10.70486999,2561.1,2561.0,3.90672471]
[1751810828485,10.70486999,2561.1,2561.0,0.002]
[1751810830586,10.70486999,2561.1,2561.0,3.90672471]
[1751810830758,10.70486999,2561.1,2561.0,0.002]
[1751810832156,10.90006999,2561.1,2561.0,0.002]
[1751810832356,10.90106999,2561.1,2561.0,0.002]
[1751810833154,2.45086999,2561.1,2561.0,4.71232471]
[1751810833360,10.70086999,2561.1,2561.0,0.8076]
[1751810834090,10.70086999,2561.1,2561.0,4.71232471]
[1751810834989,10.69986999,2561.1,2561.0,4.71232471]
[1751810835687,10.69986999,2561.1,2561.0,0.002]
[1751810835990,10.69986999,2561.1,2561.0,3.90672471]
[1751810837011,0.36686999,2561.1,2561.0,3.90672471]
[1751810837188,10.331,2561.1,2561.0,5.61622773]
[1751810837515,8.247,2561.1,2561.0,5.57718049]
[1751810840837,0.001,2561.1,2561.0,5.57718049]
[1751810841011,8.243,2561.1,2561.0,5.57718049]
[1751810842113,9.376,2561.8,2561.7,3.90365772]
[1751810842280,20.06647941,2561.8,2561.7,3.90365772]
[1751810842471,19.701,2561.8,2561.7,3.90365772]
[1751810843182,11.46,2561.8,2561.7,4.09805772]
[1751810843384,19.7,2561.8,2561.7,4.09805772]
[1751810843899,20.06522119,2561.8,2561.7,0.1944]
[1751810844477,9.74122119,2561.8,2561.7,0.1944]
[1751810844680,0.001,2562.1,2562.0,3.90320062]
[1751810844883,0.001,2562.1,2562.0,4.48792068]
[1751810844884,8.239,2562.1,2562.0,4.48792068]
[1751810846282,8.239,2562.1,2562.0,4.09760062]
[1751810847116,0.001,2562.1,2562.0,4.09760062]
[1751810847298,8.238,2562.1,2562.0,4.09760062]
[1751810847813,0.001,2562.1,2562.0,4.09760062]
[1751810848014,0.001,2562.1,2562.0,4.91580062]
[1751810848218,8.235,2562.1,2562.0,5.83674574]
[1751810848425,8.235,2562.1,2562.0,5.79771374]
[1751810848923,0.001,2562.1,2562.0,5.83674574]
[1751810849219,0.001,2562.1,2562.0,5.79771374]
[1751810849422,8.235,2562.1,2562.0,5.79771374]
[1751810850792,8.2459441,2562.3,2562.2,3.90289594]
[1751810851095,8.2449441,2562.3,2562.2,5.93693973]
[1751810851298,8.2449441,2562.3,2562.2,6.13133973]
[1751810852205,8.2449441,2562.3,2562.2,4.85279594]
[1751810852405,8.2449441,2562.3,2562.2,4.09729594]
[1751810853887,8.2459441,2562.3,2562.2,4.09729594]
[1751810856722,8.2459441,2562.3,2562.2,0.1944]
[1751810856896,8.2459441,2562.3,2562.2,4.09729594]
[1751810858230,8.2459441,2562.3,2562.2,0.1944]
[1751810858534,3.90300254,2562.2,2561.7,3.90363385]
[1751810858828,3.90300254,2562.2,2561.9,0.1944]
[1751810859015,3.90304908,2562.1,2561.9,0.1944]
[1751810859214,8.223,2562.0,2561.9,0.1944]
[1751810860924,8.223,2562.0,2561.9,4.09775298]
[1751810861400,8.222,2562.0,2561.9,4.8978625]
[1751810861595,10.2083441,2562.3,2561.9,0.99452554]
[1751810861596,0.0139441,2562.3,2561.9,0.99452554]
[1751810861796,0.0139441,2562.3,2562.2,4.09729594]
[1751810862009,0.0139441,2562.3,2562.2,4.95712489]
[1751810862325,8.2349441,2562.3,2562.2,4.95712489]
[1751810862502,8.2349441,2562.3,2562.2,4.91809594]
[1751810862846,8.2349441,2562.3,2562.2,4.09729594]
[1751810863203,8.2349441,2562.3,2562.2,0.1944]
[1751810863503,8.2349441,2562.3,2562.1,3.90294579]
[1751810863504,9.0450441,2562.3,2562.1,3.90294579]
[1751810864718,9.0450441,2562.3,2562.0,4.09752663]
[1751810865622,9.0450441,2562.3,2562.1,3.90301644]
[1751810866218,9.0450441,2562.3,2562.1,3.90304828]
[1751810866917,9.0450441,2562.3,2562.2,3.90289594]
[1751810867241,9.0450441,2562.3,2562.1,3.90297084]
[1751810867421,9.0450441,2562.3,2562.0,4.09750835]
[1751810868027,9.0450441,2562.3,2562.1,3.90304762]
[1751810868747,9.0450441,2562.3,2562.2,3.90289594]
[1751810869036,8.2349441,2562.3,2562.1,3.90297013]
[1751810869540,8.2349441,2562.3,2562.1,3.90297717]
[1751810869734,8.2349441,2562.3,2562.2,3.90289594]
[1751810870130,8.2349441,2562.3,2562.0,0.1944]
[1751810870540,2.0849441,2562.3,2562.2,3.90289594]
[1751810870733,10.2989441,2562.3,2562.2,4.95586846]
[1751810870937,10.2989441,2562.3,2562.2,0.1944]
[1751810871140,10.2989441,2562.3,2562.2,4.09729594]
[1751810871338,10.2989441,2562.3,2561.9,3.90327495]
[1751810871648,10.2989441,2562.3,2562.1,0.1944]
[1751810872239,10.2984821,2562.3,2562.1,0.1944]
[1751810872415,0.7635,2562.2,2562.1,0.1944]
[1751810872615,3.90376424,2561.7,2561.3,0.1952]
[1751810872819,0.7635,2561.5,2561.3,0.1952]
[1751810873119,0.7635,2561.5,2561.3,4.09939029]
[1751810874137,10.284,2561.6,2561.3,4.09939029]
[1751810874353,10.284,2561.6,2561.4,3.90402007]
[1751810874920,10.284,2561.6,2561.3,4.89973664]
[1751810874921,10.284,2561.6,2561.3,4.09940746]
[1751810875122,10.284,2561.6,2561.4,3.90409807]
[1751810875322,10.284,2561.6,2561.5,3.90396252]
[1751810875524,2.072,2561.8,2561.7,3.90365772]
[1751810875732,10.283,2561.8,2561.5,0.9622]
[1751810875938,10.283,2561.8,2561.5,0.1944]
[1751810877126,10.283,2561.8,2561.5,4.09835137]
[1751810877426,0.7635,2561.7,2561.3,3.90422198]
[1751810877628,8.21,2561.6,2561.3,4.09942198]
[1751810878027,8.21,2561.6,2561.3,4.09940014]
[1751810878556,8.21,2561.6,2561.3,0.1952]
[1751810878754,0.7635,2561.7,2561.3,0.1952]
[1751810878755,0.7916,2562.1,2561.8,3.9035012]
[1751810878955,10.64577356,2562.0,2561.8,3.9035012]
[1751810879259,10.281,2562.0,2561.8,3.9035012]
[1751810879468,2.072,2562.0,2561.9,3.90335298]
[1751810879767,10.281,2562.0,2561.9,4.87843881]
[1751810880748,0.0134821,2562.3,2562.2,3.90289594]
[1751810880962,10.2934821,2562.3,2562.2,3.90289594]
[1751810881152,0.0134821,2562.3,2562.2,4.09729594]
[1751810881349,10.2924821,2562.3,2562.2,4.09729594]
[1751810881961,0.0134821,2562.3,2562.2,4.97872828]
[1751810882274,8.2204821,2562.3,2562.2,5.01775723]
[1751810882433,8.2204821,2562.3,2562.2,4.09729594]
[1751810883238,8.2204821,2562.3,2562.2,0.1944]
[1751810883426,8.2204821,2562.3,2562.2,4.09729594]
[1751810883650,0.7916,2562.2,2561.6,0.814]
[1751810883857,8.206,2562.1,2561.8,0.1944]
[1751810884180,8.206,2562.1,2562.0,3.90320062]
[1751810884328,8.206,2562.1,2562.0,4.09760062]
[1751810884650,8.9976,2562.1,2561.7,0.1944]
[1751810884852,8.9976,2562.1,2561.7,4.09799071]
[1751810885564,8.9976,2562.1,2561.8,3.90349787]
[1751810885888,8.9976,2562.1,2561.7,0.1944]
[1751810886164,8.9976,2562.1,2562.0,3.90320062]
[1751810886630,0.1944,2562.2,2562.1,3.90304828]
[1751810886828,10.64000277,2562.2,2562.1,3.90304828]
[1751810887049,10.275,2562.2,2562.1,3.90304828]
[1751810887867,2.072,2562.2,2562.1,3.90304828]
[1751810888071,10.275,2562.2,2562.1,3.90304828]
[1751810889334,2.072,2562.2,2562.1,3.90304828]
[1751810889538,10.274,2562.2,2562.1,4.09744828]
[1751810889743,2.072,2562.2,2562.1,4.09744828]
[1751810889944,10.273,2562.2,2562.1,4.8975111]
[1751810893679,0.0134821,2562.3,2562.2,3.90289594]
[1751810893867,0.0134821,2562.3,2562.2,4.74232489]
[1751810893868,8.2114821,2562.3,2562.2,4.74232489]
[1751810894179,8.2114821,2562.3,2562.2,4.89769594]
[1751810896750,8.2114821,2562.3,2562.2,4.09729594]
[1751810898506,8.2084821,2562.3,2562.2,4.89733036]
[1751810900326,8.2074821,2562.3,2562.2,4.89733036]
[1751810900521,8.2074821,2562.3,2562.2,5.65463036]
[1751810901512,8.2064821,2562.3,2562.2,5.65463036]
[1751810902014,9.4236776,2562.8,2562.7,3.90213446]
[1751810902313,19.6766776,2562.8,2562.7,4.09653446]
[1751810902878,11.4846776,2562.8,2562.7,4.09653446]
[1751810903079,19.6756776,2562.8,2562.7,4.09653446]
[1751810904305,11.4846776,2562.8,2562.7,4.09653446]
[1751810904508,10.2936776,2562.8,2562.7,5.65371407]
[1751810905580,10.2936776,2562.8,2562.7,4.89641407]
[1751810905775,10.2936776,2562.8,2562.7,4.09653446]
[1751810906709,8.2316776,2562.8,2562.7,4.09653446]
[1751810907097,8.2316776,2562.8,2562.7,0.1944]
[1751810907405,9.0163776,2562.8,2562.6,3.90226795]
[1751810907908,0.0426776,2562.8,2562.6,4.73336795]
[1751810908108,0.0426776,2562.8,2562.7,5.2455926]
[1751810908314,0.0426776,2562.8,2562.7,5.4399926]
[1751810909515,0.0506776,2563.3,2563.2,3.90137328]
[1751810909713,8.2376776,2563.3,2563.2,4.92687328]
[1751810909890,8.2376776,2563.3,2563.2,5.81361308]
[1751810910290,8.2366776,2563.3,2563.2,5.81361308]
[1751810910717,0.0506776,2563.3,2563.2,5.81361308]
[1751810911014,1e-08,2563.3,2563.2,5.85262681]
[1751810911721,0.001,2563.7,2563.6,4.73186454]
[1751810912020,0.001,2563.7,2563.6,5.82854881]
[1751810912392,0.001,2563.7,2563.6,5.78954117]
[1751810913326,0.001,2563.7,2563.6,4.09516454]
[1751810913530,8.184,2563.7,2563.6,4.09516454]
[1751810914023,8.9795,2563.7,2563.2,3.90132945]
[1751810914190,8.9795,2563.7,2563.3,3.90111132]
[1751810914191,0.1944,2563.6,2563.3,3.90111132]
[1751810916522,0.1944,2563.6,2563.4,3.9010567]
[1751810916719,0.1944,2563.6,2563.2,4.09575639]
[1751810916923,0.1944,2563.6,2563.3,3.90115181]
[1751810917124,0.001,2563.7,2563.6,3.90076454]
[1751810917329,8.181,2563.7,2563.6,3.90076454]
[1751810918519,8.181,2563.7,2563.6,4.09516454]
[1751810919413,0.001,2563.7,2563.6,4.09516454]
[1751810919614,8.18,2563.7,2563.6,4.97402267]
[1751810919919,0.001,2563.7,2563.6,4.97402267]
[1751810920123,0.001,2563.7,2563.6,5.01303031]
[1751810920294,8.179,2563.7,2563.6,4.97402267]
[1751810920624,0.001,2564.1,2564.0,3.900156]
[1751810920826,0.001,2564.1,2564.0,4.13355756]
[1751810922324,0.001,2564.1,2564.0,4.094556]
[1751810922696,0.001,2564.1,2563.5,3.90179982]
[1751810922697,0.010871,2564.1,2563.5,0.7554]
[1751810923030,0.7909,2564.0,2563.7,4.09493554]
[1751810923198,8.177,2563.9,2563.7,4.09493554]
[1751810923727,8.177,2563.9,2563.7,4.09500457]
[1751810924514,8.177,2563.9,2563.8,3.90046025]
[1751810924829,8.177,2563.9,2563.7,4.0949347]
[1751810925027,8.177,2563.9,2563.8,3.90046025]
[1751810925733,8.177,2563.9,2563.7,4.09496657]
[1751810926311,8.177,2563.9,2563.8,3.90046025]
[1751810929218,8.177,2563.9,2563.7,0.1944]
[1751810929532,8.177,2563.9,2563.7,4.09500175]
[1751810930127,8.177,2563.9,2563.7,0.1944]
[1751810930435,8.177,2563.9,2563.7,4.09501212]
[1751810931656,8.177,2563.9,2563.8,3.90046025]
[1751810931940,8.177,2563.9,2563.7,4.09496211]
[1751810932833,8.177,2563.9,2563.8,3.90046025]
[1751810933833,8.177,2563.9,2563.7,4.09495471]
[1751810934329,8.177,2563.9,2563.8,3.90046025]
[1751810934635,8.177,2563.9,2563.7,0.1944]
[1751810935146,8.177,2563.9,2563.7,4.09499127]
[1751810935440,8.177,2563.9,2563.8,3.90046025]
[1751810936149,8.177,2563.9,2563.7,4.09495626]
[1751810938347,8.177,2563.9,2563.7,4.09499416]
[1751810940644,8.177,2563.9,2563.7,0.1944]
[1751810940966,8.177,2563.9,2563.7,4.09501082]
[1751810941147,0.8241,2563.8,2563.5,0.001]
[1751810941445,1.0185,2563.8,2563.5,0.001]
[1751810941857,1.0185,2563.8,2563.5,3.9018678]
[1751810942059,10.217,2563.7,2563.5,0.001]
[1751810942932,8.166,2563.6,2563.5,3.90189134]
[1751810943133,8.166,2563.6,2563.5,4.70162483]
[1751810944351,8.166,2563.6,2563.5,0.001]
[1751810945870,12.82626454,2563.6,2563.5,0.001]
[1751810946167,23.37626454,2563.6,2563.5,0.001]
[1751810946523,20.9745,2563.6,2563.5,0.001]
[1751810947016,21.33480223,2563.6,2563.5,0.001]
[1751810947239,10.57630223,2563.6,2563.5,0.001]
[1751810947451,10.216,2563.6,2563.5,0.001]
[1751810948223,10.216,2563.6,2563.5,3.90191671]
[1751810948830,10.216,2563.6,2563.5,0.001]
[1751810949244,10.208,2563.6,2563.5,0.001]
[1751810949854,10.208,2563.6,2563.5,3.90191671]
[1751810950237,10.208,2563.6,2563.5,0.001]
[1751810951158,10.208,2563.6,2563.5,3.90191671]
[1751810951659,10.208,2563.6,2563.5,0.001]
[1751810952055,4.66003019,2563.8,2563.5,0.001]
[1751810952248,10.207,2563.6,2563.5,0.001]
[1751810952862,14.10776454,2563.6,2563.5,0.001]
[1751810953272,10.207,2563.6,2563.5,0.001]
[1751810955054,10.207,2563.6,2563.5,3.90191671]
[1751810955261,0.1944,2563.7,2563.5,3.90183942]
[1751810955424,10.205,2563.6,2563.5,3.90189241]
[1751810955630,10.205,2563.6,2563.5,0.001]
[1751810955829,10.205,2563.6,2563.5,3.90191671]
[1751810956344,2.044,2563.6,2563.5,3.90191671]
[1751810956550,10.204,2563.6,2563.5,4.78251483]
[1751810956856,2.044,2563.6,2563.5,4.78251483]
[1751810957067,10.204,2563.6,2563.5,4.78251483]
[1751810957848,2.044,2563.6,2563.5,4.78251483]
[1751810958049,10.204,2563.6,2563.5,4.78251483]
[1751810958875,10.203,2563.6,2563.5,4.78251483]
[1751810962281,2.044,2563.6,2563.5,4.78251483]
[1751810962584,10.201,2563.6,2563.5,4.82152399]
[1751810962784,10.201,2563.6,2563.5,4.78251483]
[1751810963585,0.001,2563.9,2563.8,3.90046025]
[1751810963766,8.157,2563.9,2563.8,4.76197505]
[1751810963968,8.157,2563.9,2563.8,4.95637505]
[1751810965286,0.001,2563.9,2563.8,4.95637505]
[1751810965584,8.156,2563.9,2563.8,4.95637505]
[1751810966379,8.156,2563.9,2563.8,1.0559148]
[1751810966686,8.156,2563.9,2563.6,0.8141]
[1751810966867,8.156,2563.9,2563.5,0.88159812]
[1751810967069,8.156,2563.9,2563.5,4.78250638]
[1751810967262,0.001,2563.8,2563.5,4.78250638]
[1751810967590,7.954,2563.7,2563.5,0.88159812]
[1751810967886,7.954,2563.7,2563.5,0.001]
[1751810969585,4.68026454,2563.6,2563.5,0.001]
[1751810969784,14.68026454,2563.6,2563.5,0.001]
[1751810970104,15.04024234,2563.6,2563.5,0.001]
[1751810970402,18.5119778,2563.6,2563.5,0.001]
[1751810970596,8.152,2563.6,2563.5,0.001]
[1751810970987,8.152,2563.6,2563.5,3.90191671]
[1751810972289,8.152,2563.6,2563.5,0.001]
[1751810972493,8.152,2563.6,2563.5,5.04261562]
[1751810973593,8.152,2563.6,2563.5,4.29211562]
[1751810973898,8.152,2563.6,2563.5,0.001]
[1751810978607,18.51574454,2563.6,2563.5,0.001]
[1751810979179,22.41650908,2563.6,2563.5,0.001]
[1751810979593,23.16690908,2563.6,2563.5,0.001]
[1751810980103,23.71690908,2563.6,2563.5,0.001]
[1751810983903,23.71674475,2563.6,2563.5,0.001]
[1751810984100,19.26598021,2563.6,2563.5,0.001]
[1751810984480,18.50958021,2563.6,2563.5,0.001]
[1751810984683,18.146,2563.6,2563.5,3.90191671]
[1751810984999,8.146,2563.6,2563.5,0.001]
[1751810985299,10.0,2563.7,2563.5,0.001]
[1751810985503,8.146,2563.6,2563.5,4.3115612]
[1751810985676,2.038,2563.8,2563.7,3.90061239]
[1751810985876,10.183,2563.8,2563.7,3.90061239]
[1751810986073,2.038,2563.8,2563.7,3.90061239]
[1751810986278,10.183,2563.8,2563.7,4.72180624]
[1751810986496,2.038,2563.8,2563.7,4.72180624]
[1751810986701,10.183,2563.8,2563.7,4.72180624]
[1751810987412,2.038,2563.8,2563.7,4.72180624]
[1751810987604,10.183,2563.8,2563.7,4.72180624]
[1751810989599,2.038,2563.8,2563.7,4.72180624]
[1751810989796,10.181,2563.8,2563.7,4.72180624]
[1751810994324,0.001,2563.8,2563.7,4.72180624]
[1751810994500,8.142,2563.8,2563.7,4.72180624]
[1751810994911,8.141,2563.8,2563.7,4.72180624]
[1751810996029,0.001,2563.8,2563.7,4.72180624]
[1751810996325,8.13844953,2563.8,2563.7,4.72180624]
[1751810998218,0.001,2563.9,2563.8,3.90046025]
[1751810998400,0.001,2563.9,2563.8,6.06117101]
[1751810998614,8.138,2563.9,2563.8,6.10017561]
[1751810998941,0.001,2563.9,2563.8,6.06117101]
[1751810999138,0.001,2563.9,2563.8,6.10017561]
[1751811000242,0.001,2563.9,2563.8,6.06117101]
[1751811001042,0.001,2563.9,2563.8,6.10017561]
[1751811001545,2.037,2564.7,2564.2,3.8998518]
[1751811001714,2.037,2564.7,2564.4,3.89954765]
[1751811002356,8.1778771,2564.5,2564.4,3.89954765]
[1751811002545,0.0428771,2564.5,2564.4,3.89954765]
[1751811003847,0.01,2564.9,2564.8,3.89893948]
[1751811004545,8.143,2564.9,2564.8,3.89893948]
[1751811004743,0.01,2564.9,2564.8,4.76192039]
[1751811005865,0.01,2564.9,2564.8,4.80090978]
[1751811006066,1e-08,2564.9,2564.8,5.63270978]
[1751811006839,1e-08,2565.0,2564.9,4.73058747]
[1751811007063,1e-08,2565.0,2564.9,6.07364415]
[1751811007266,1e-08,2565.0,2564.9,6.11263202]
[1751811009173,1e-08,2565.0,2564.9,6.07364415]
[1751811010531,1e-08,2565.0,2564.9,6.11263202]
[1751811011076,1e-08,2565.0,2564.9,5.24184415]
[1751811011227,1e-08,2565.0,2564.9,3.89878747]
[1751811014539,1e-08,2565.0,2564.9,4.70477534]
[1751811014741,1e-08,2565.0,2564.9,4.66578747]
[1751811027565,1e-08,2565.0,2564.9,19.45477534]
[1751811027765,1e-08,2565.0,2564.9,3.89878747]
[1751811027995,1e-08,2565.0,2564.7,0.7678]
[1751811027996,0.7624,2564.9,2564.7,3.89895076]
[1751811028165,0.7624,2564.9,2564.8,3.89893948]
[1751811028592,1e-08,2565.0,2564.9,3.89878747]
[1751811028811,0.7624,2564.9,2564.8,3.89893948]
[1751811029913,0.7624,2564.9,2564.7,3.89900726]
[1751811031716,0.7624,2564.9,2564.1,0.7678]
[1751811032018,1e-08,2565.0,2563.1,4.75]
[1751811032019,0.7624,2564.4,2563.9,3.9002044]
[1751811032225,0.7624,2564.1,2563.6,3.9006853]
[1751811032383,0.7624,2564.1,2564.0,3.900156]
[1751811032720,0.7624,2564.1,2563.5,0.001]
[1751811032721,3.89923571,2564.7,2563.5,0.001]
[1751811032722,0.8115,2564.5,2563.6,0.7696]
[1751811032890,8.114,2564.3,2564.1,3.89994452]
[1751811033517,8.114,2564.3,2564.0,3.90010108]
[1751811033820,0.8115,2564.2,2564.1,3.9000039]
[1751811035804,8.9265,2564.2,2564.1,3.9000039]
[1751811036009,8.9265,2564.2,2564.0,3.90003702]
[1751811036707,8.9265,2564.2,2563.9,3.90020357]
[1751811036915,8.9265,2564.2,2564.0,3.90013194]
[1751811037820,8.9265,2564.2,2563.5,0.04387709]
[1751811038020,0.7593,2564.0,2563.5,0.04387709]
[1751811038226,3.90034069,2563.9,2563.5,0.04387709]
[1751811038392,15.92943608,2563.9,2563.5,0.23827709]
[1751811038584,0.7593,2563.8,2563.5,0.23827709]
[1751811038808,8.113,2563.7,2563.5,0.04387709]
[1751811039009,15.21006454,2563.6,2563.5,0.04387709]
[1751811039287,15.57329849,2563.6,2563.5,0.04387709]
[1751811039810,1.67253395,2563.6,2563.5,0.04387709]
[1751811040122,10.8943,2563.6,2563.5,0.04387709]
[1751811040287,25.68771454,2563.6,2563.5,0.04387709]
[1751811040897,21.78695,2563.6,2563.5,0.04387709]
[1751811041334,25.68771454,2563.6,2563.5,0.04387709]
[1751811041617,21.78695,2563.6,2563.5,0.04387709]
[1751811041788,25.68771454,2563.6,2563.5,0.04387709]
[1751811043222,26.23771454,2563.6,2563.5,0.04387709]
[1751811043422,26.5999096,2563.6,2563.5,0.04387709]
[1751811044144,26.59990504,2563.6,2563.5,0.04387709]
[1751811044646,26.59990504,2563.6,2563.0,0.0428771]
[1751811044647,4.45152549,2563.1,2563.0,0.0428771]
[1751811044848,23.32442549,2563.1,2563.0,0.0428771]
[1751811045324,15.21142549,2563.1,2563.0,0.0428771]
[1751811045490,25.70913693,2563.1,2563.0,0.0428771]
[1751811046123,25.34742549,2563.1,2563.0,0.0428771]
[1751811046334,26.24007549,2563.1,2563.0,0.0428771]
[1751811046507,26.24007549,2563.1,2562.5,0.0428771]
[1751811046508,14.66218674,2562.6,2562.5,0.0428771]
[1751811046705,22.77618674,2562.6,2562.5,0.0428771]
[1751811046907,23.32618674,2562.6,2562.5,0.0428771]
[1751811047108,23.97082515,2562.6,2562.5,0.0428771]
[1751811048528,15.85682515,2562.6,2562.5,0.0428771]
[1751811048696,25.99382515,2562.6,2562.5,0.0428771]
[1751811049997,11.95453841,2562.6,2562.5,0.0428771]
[1751811050204,22.09253841,2562.6,2562.5,0.0428771]
[1751811051304,25.99482515,2562.6,2562.5,0.0428771]
[1751811052136,22.09253841,2562.6,2562.5,0.0428771]
[1751811052834,7.81,2563.5,2562.5,3.94531612]
[1751811053039,0.8306,2562.9,2562.5,0.0428771]
[1751811053225,10.0,2562.7,2562.6,3.9022378]
[1751811053744,0.8306,2563.6,2562.9,3.90168163]
[1751811053950,2.024,2563.2,2563.1,3.90152549]
[1751811054147,20.138,2563.2,2563.1,3.90152549]
[1751811054338,10.138,2563.2,2563.1,3.90152549]
[1751811054523,2.024,2563.2,2563.1,3.90152549]
[1751811054728,10.137,2563.2,2563.1,3.90152549]
[1751811056017,2.024,2563.4,2563.2,3.90132163]
[1751811056241,18.113,2563.3,2563.2,3.90132163]
[1751811057043,10.0,2563.3,2563.2,3.90132163]
[1751811057254,18.112,2563.3,2563.2,4.68160512]
[1751811057961,18.112,2563.3,2563.2,4.87600512]
[1751811058162,18.112,2563.3,2563.2,5.63980512]
[1751811058755,10.0,2563.3,2563.2,5.63980512]
[1751811058958,18.112,2563.3,2563.2,5.63980512]
[1751811059453,10.0,2563.3,2563.2,5.63980512]
[1751811059632,18.111,2563.3,2563.2,5.63980512]
[1751811060760,10.0,2563.3,2563.2,5.63980512]
[1751811060933,18.111,2563.3,2563.2,5.63980512]
[1751811063240,18.111,2563.3,2563.2,4.09572163]
[1751811064329,8.111,2563.3,2563.2,4.09572163]
[1751811065670,8.111,2563.3,2563.2,0.1944]
[1751811065851,8.111,2563.3,2562.8,3.90197672]
[1751811065852,8.8886,2563.3,2562.8,3.90197672]
[1751811066174,8.8886,2563.3,2562.9,3.90176619]
[1751811066388,8.8886,2563.3,2563.0,3.90167474]
[1751811066562,8.8886,2563.3,2562.6,0.8021]
[1751811066563,8.111,2563.3,2562.6,0.8021]
[1751811066765,8.111,2563.3,2563.2,3.90137328]
[1751811067077,8.111,2563.3,2563.0,3.90155591]
[1751811067462,8.111,2563.3,2562.9,3.9017462]
[1751811067663,8.111,2563.3,2563.0,3.90161561]
[1751811067861,8.111,2563.3,2563.1,3.90151413]
[1751811068082,8.111,2563.3,2563.0,3.90160522]
[1751811069083,8.111,2563.3,2563.1,3.90151794]
[1751811070178,8.111,2563.3,2563.1,3.9015062]
[1751811070571,8.99986,2563.3,2563.0,3.90159812]
[1751811071175,8.99986,2563.3,2563.1,3.90151916]
[1751811071494,0.7776,2563.5,2562.9,3.90180918]
[1751811071495,8.106,2563.2,2562.9,3.90172649]
[1751811071695,8.106,2563.1,2563.0,3.90167576]
[1751811071897,8.106,2563.1,2562.9,3.90176518]
[1751811072391,8.106,2563.1,2563.0,3.90167772]
[1751811072593,2.018,2563.5,2563.3,3.90121821]
[1751811072794,18.46875089,2563.4,2563.3,3.90107165]
[1751811073372,8.46875089,2563.4,2563.3,3.90107165]
[1751811073570,8.46875089,2563.4,2563.1,3.90145748]
[1751811073765,0.36375089,2563.3,2563.1,3.90145748]
[1751811073967,8.105,2563.4,2563.1,3.90145748]
[1751811074174,12.00618442,2563.4,2562.9,3.9016914]
[1751811074379,0.36375999,2563.3,2562.9,3.9016914]
[1751811074665,0.8121,2563.2,2562.9,3.9016914]
[1751811074866,8.105,2563.1,2562.9,3.9016914]
[1751811075272,8.105,2563.1,2563.0,3.90167772]
[1751811075506,8.105,2563.1,2562.9,3.90175271]
[1751811076362,8.105,2563.1,2562.8,3.90195621]
[1751811076566,8.105,2563.1,2563.0,3.90167772]
[1751811078999,8.105,2563.1,2562.9,3.90175181]
[1751811080302,8.105,2563.1,2563.0,3.90167772]
[1751811080706,8.46960364,2563.1,2562.9,3.90175592]
[1751811080891,8.105,2563.1,2562.9,3.90175592]
[1751811081606,8.105,2563.1,2563.0,3.90167772]
[1751811081776,8.46985863,2563.1,2562.9,3.90177722]
[1751811081976,8.105,2563.1,2562.9,3.90177722]
[1751811082177,0.36519773,2563.0,2562.9,3.90177722]
[1751811083306,0.36519773,2563.0,2562.9,3.90377722]
[1751811085039,2.018,2563.2,2563.1,3.90152549]
[1751811085218,10.48440075,2563.2,2563.0,3.90159762]
[1751811085385,0.36540075,2563.1,2563.0,3.90159762]
[1751811087314,0.001,2563.3,2563.2,3.90137328]
[1751811087516,8.46640163,2563.3,2563.1,3.90146216]
[1751811087697,0.36540163,2563.2,2563.1,3.90146216]
[1751811087895,0.36540163,2563.2,2562.9,0.002]
[1751811088095,2.18334179,2563.2,2562.9,3.90382387]
[1751811088418,0.36540163,2563.1,2563.0,3.90167772]
[1751811089727,0.36540163,2563.1,2562.9,3.90375237]
[1751811090023,8.099,2563.0,2562.9,3.90375237]
[1751811091522,0.001,2563.3,2562.9,0.002]
[1751811091707,2.38445642,2563.3,2563.2,3.90137328]
[1751811091910,10.48245642,2563.3,2563.2,3.90137328]
[1751811092106,10.48245642,2563.3,2563.1,3.90145903]
[1751811092325,0.36545642,2563.2,2563.0,4.70901822]
[1751811092537,0.36545642,2563.2,2563.0,3.90161822]
[1751811093009,0.36545642,2563.2,2562.9,3.90379856]
[1751811093709,1.13345642,2563.2,2562.9,3.90379856]
[1751811093931,0.36545642,2563.1,2563.0,3.90167772]
[1751811094127,0.36545642,2563.1,2562.9,3.90374644]
[1751811094329,8.097,2563.0,2562.9,3.90374644]
[1751811094536,8.46245642,2563.0,2562.9,3.90374644]
[1751811094707,8.097,2563.0,2562.9,3.90374644]
[1751811095237,8.097,2563.0,2562.9,3.90377215]
[1751811095618,8.46291766,2563.0,2562.9,3.90377215]
[1751811096734,8.46292531,2563.0,2562.9,3.90377215]
[1751811098122,8.097,2563.0,2562.9,3.90377215]
[1751811098323,0.001,2563.3,2563.2,3.90137328]
[1751811098524,8.46194467,2563.3,2563.2,3.90137328]
[1751811100350,0.36694467,2563.3,2563.2,3.90137328]
[1751811100647,8.46094467,2563.3,2563.2,4.09577328]
[1751811100948,8.095,2563.3,2563.2,4.09577328]
[1751811101119,0.001,2563.3,2563.2,4.09577328]
[1751811101318,8.095,2563.3,2563.2,4.09577328]
[1751811104260,8.094,2563.3,2563.2,4.09577328]
[1751811104454,8.094,2563.3,2563.2,4.97095314]
[1751811106165,0.001,2563.3,2563.2,4.97095314]
[1751811106471,8.093,2563.3,2563.2,5.00996687]
[1751811106638,8.093,2563.3,2563.2,4.97095314]
[1751811107765,0.001,2563.3,2563.2,4.97095314]
[1751811107966,8.092,2563.3,2563.2,5.00996687]